[Event "1000GM Spring GM-A 2024"]
[Site "New York"]
[Date "2024.03.31"]
[Round "7.1"]
[White "Bortnyk, Mykola"]
[Black "Shlyakhtenko, Robert"]
[Result "0-1"]
[ECO "B22"]
[WhiteElo "2453"]
[BlackElo "2384"]
[Annotator "TA"]
[PlyCount "120"]
[EventDate "2024.03.26"]
[EventType "tourn"]
[EventCountry "USA"]
[SourceTitle "playchess.com"]
[Source "ChessBase"]
[SourceQuality "1"]
[TimeControl "5400+30"]

{[%evp 24,120,21,0,0,7,7,5,56,0,2,-10,0,0,16,-5,0,0,11,6,0,0,0,0,0,-4,0,0,0,0,0,0,0,-27,-11,-13,0,0,0,0,0,0,0,0,0,0,0,-16,-10,-30,-37,-49,-53,-45,0,-44,-49,-172,-108,-208,-212,-218,-217,-404,-407,-404,-358,-408,-381,-529,-513,-688,-654,-893,-893,-585,-588,-568,-465,-762,-729,-12798,-1610,-10772,-5601,-29968,-29968,-29969,-29968,-29968,-29971,-29972,-29969,-29973,-29972,-29966,-29969,-29974,-29977]} 1. e4 {[%emt 0:00:03][%cal Be2e4,Be4e5][%mdl 32]} c5 {[%emt 0:00:05]} 2. Nf3 {[%emt 0:00:44]} e6 {[%emt 0:00:09]} 3. c3 {[%emt 0:00:57]} Nf6 {[%emt 0:00:06]} 4. e5 {[%emt 0:00:08]} Nd5 {[%emt 0:00:07]} 5. d4 {[%emt 0:00:30]} cxd4 {[%emt 0:00:07]} 6. cxd4 {[%emt 0:00:04]} d6 {[%emt 0:00:09]} 7. Bc4 {[%emt 0:00:20]} Nb6 {[%emt 0:00:11]} 8. Bb3 {[%emt 0:05:09]} dxe5 {[%emt 0:00:19]} 9. Nxe5 {[%emt 0:00:01]} Nc6 {[%emt 0:00:10]} 10. Nxc6 {[%emt 0:00:26]} bxc6 {[%emt 0:00:06]} 11. O-O {[%emt 0:00:04]} Ba6 {[%emt 0:00:25]} 12. Re1 {[%emt 0:00:08]} Be7 {[%emt 0:00:05]} 13. Nc3 {[%emt 0:00:46][%cal Bb1c3,Bc3e4,Be4c5][%mdl 32]} O-O {[%emt 0:00:10]} 14. Ne4 {[%emt 0:02:31]} Nd5 {[%emt 0:03:43]} 15. Qf3 {[%emt 0:01:15]} Rc8 {[%emt 0:04:59]} ({Black should play} 15... Qb6 $11) 16. Be3 {[%emt 0:02:48]} (16. Bd2 $14) 16... Bd3 $11 {[%emt 0:05:59]} 17. Nc5 {[%emt 0:06:24]} Bg6 {[%emt 0:02:03]} 18. Rac1 {[%emt 0:02:30]} Bf6 {[%emt 0:01:26]} 19. Ne4 {[%emt 0:03:06]} Be7 {[%emt 0:01:01]} 20. Nc5 {[%emt 0:01:54]} Bf6 {[%emt 0:00:12]} 21. Red1 {[%emt 0:00:21]} Qe7 {[%emt 0:08:22]} 22. Ne4 {[%emt 0:04:44]} Bxe4 {[%emt 0:01:40]} 23. Qxe4 {[%emt 0:00:03]} Rfd8 {[%emt 0:00:20]} 24. Rc4 {[%emt 0:03:48]} Qb7 {[%emt 0:10:35]} 25. Rdc1 {[%emt 0:01:31]} Rd6 {[%emt 0:01:31]} 26. h4 {[%emt 0:03:42]} Rcd8 {[%emt 0:06:09]} 27. h5 {[%emt 0:00:55]} h6 {[%emt 0:05:35]} 28. Bc2 {[%emt 0:05:00]} Kf8 {[%emt 0:05:06] Active counter play!} (28... Qxb2 29. Rb1 (29. Qh7+ Kf8 $11) 29... Nxe3 30. Qh7+ (30. Rxb2 Nxc4 31. Rb7 Kf8 $16) 30... Kf8 31. Rxb2 $16) 29. Bb3 {[%emt 0:05:20]} Nb6 {[%emt 0:12:32]} 30. Rxc6 {[%emt 0:00:44]} Rxc6 {[%emt 0:00:05]} 31. Qxc6 {[%emt 0:02:07]} (31. Rxc6 $2 Rd6 32. d5 exd5 33. Rxb6 axb6 $19) 31... Qxc6 {[%emt 0:00:18]} 32. Rxc6 {[%emt 0:00:03]} Bxd4 {[%emt 0:00:07]} 33. Bc1 {[%emt 0:02:30]} Nd5 {[%emt 0:03:05]} 34. Bxd5 {[%emt 0:04:56]} Rxd5 {[%emt 0:00:50][%mdl 4096] Endgame. KRB-KRB} 35. g4 {[%emt 0:00:07]} f5 {[%emt 0:02:02]} 36. gxf5 {[%emt 0:00:44]} Rxf5 {[%emt 0:00:11]} 37. Be3 {[%emt 0:00:06]} Bxe3 {[%emt 0:03:52]} 38. fxe3 $15 {[%emt 0:00:03] KR-KR} Ra5 {[%emt 0:00:30] Dodges Ra6} 39. a3 {[%emt 0:00:16]} Kf7 {[%emt 0:00:09][%cal Of7f6]} 40. Rc7+ {[%emt 0:00:20] White is on the road to losing.} (40. Rc4 $1 $15) 40... Kf6 $19 {[%emt 0:00:05]} 41. Kg2 {[%emt 0:00:04] [#]} (41. Kf1 $17) 41... Rg5+ $1 {[%emt 0:01:52]} (41... Rxh5 42. Rxa7 Re5 43. Kf3 $15) 42. Kf3 {[%emt 0:05:26]} a5 {[%emt 0:00:11]} ({Less strong is} 42... Rxh5 43. Rxa7 Rh3+ 44. Ke4 $15) 43. b4 $2 {[%emt 0:02:50]} (43. Rc8 {might work better.}) 43... axb4 {[%emt 0:00:18]} (43... Rxh5 $2 44. Rb7 $17) 44. axb4 {[%emt 0:00:02]} Rxh5 {[%emt 0:03:49]} 45. Rb7 {[%emt 0:00:54]} Rh4 {[%emt 0:01:29]} 46. b5 {[%emt 0:00:20]} Rb4 {[%emt 0:00:07]} 47. b6 {[%emt 0:00:04]} h5 {[%emt 0:02:26]} 48. Rb8 {[%emt 0:00:45]} Kg5 {[%emt 0:01:26]} 49. Kg3 {[%emt 0:04:49]} Rb3 {[%emt 0:01:20]} 50. Rb7 {[%emt 0:00:44]} g6 {[%emt 0:03:57]} ({Worse is} 50... Rxe3+ 51. Kf2 Rb3 52. Rxg7+ Kh6 53. Rb7 $11) 51. Kf3 {[%emt 0:00:03]} (51. Rb8 $142) 51... Kh4 {[%emt 0:01:31] [#] Hoping for ...g5.} 52. Rg7 {[%emt 0:03:24]} g5 {[%emt 0:00:13]} ({Inferior is} 52... Rxb6 53. Rxg6 Ra6 54. Kg2 $11) 53. b7 {[%emt 0:00:05]} Rb4 {[%emt 0:00:10] ( -> ...g4+)} 54. Rh7 {[%emt 0:02:32]} g4+ {[%emt 0:00:42] Black mates.} 55. Ke2 {[%emt 0:00:10]} Rb2+ {[%emt 0:00:22]} 56. Kd3 {[%emt 0:00:04]} g3 {[%emt 0:01:11]} 57. Ke4 {[%emt 0:00:05]} Kg4 {[%emt 0:01:37]} 58. Rg7+ {[%emt 0:00:15]} Kh3 {[%emt 0:00:07]} 59. Kf3 {[%emt 0:00:05]} h4 {[%emt 0:00:09]} 60. Kf4 {[%emt 0:01:00]} g2 {[%emt 0:00:50] Weighted Error Value: White=0.59/Black=0.06 (flawless) .  Mistake:       	White=5     	Black=1      Inaccurate:     	White=6     	Black=1      OK:         	White=11    	Black=15     Best:        	---       	Black=5      Strong:       	---       	Black=1} 0-1

[Event "1000GM Spring GM-A 2024"]
[Site "New York"]
[Date "2024.03.31"]
[Round "7.2"]
[White "Huston, Gus"]
[Black "Mardov, Dimitar"]
[Result "1/2-1/2"]
[ECO "D36"]
[WhiteElo "2401"]
[BlackElo "2473"]
[Annotator "RC"]
[PlyCount "90"]
[EventDate "2024.03.26"]
[EventType "tourn"]
[EventCountry "USA"]
[SourceTitle "playchess.com"]
[Source "ChessBase"]
[SourceQuality "1"]
[TimeControl "5400+30"]

1. c4 {[%emt 0:00:03]} e6 {[%emt 0:01:23]} 2. Nc3 {[%emt 0:00:19]} d5 {[%emt 0:00:30]} 3. d4 {[%emt 0:00:06]} Nf6 {[%emt 0:00:18]} 4. cxd5 {[%emt 0:00:05]} exd5 {[%emt 0:00:04]} 5. Bg5 {[%emt 0:00:05]} Be7 {[%emt 0:01:46]} 6. e3 {[%emt 0:00:43]} c6 {[%emt 0:00:30]} 7. Bd3 {[%emt 0:01:01]} Nbd7 {[%emt 0:00:39]} 8. h3 {[%emt 0:00:14]} O-O {[%emt 0:02:09]} 9. Qc2 {[%emt 0:00:07]} Re8 {[%emt 0:02:11]} 10. Nf3 {[%emt 0:00:20]} Ne4 {[%emt 0:11:03]} 11. Bf4 {[%emt 0:00:01]} Ndf6 {[%emt 0:01:00]} 12. Ne5 {[%emt 0:02:55]} Bd6 {[%emt 0:10:28]} 13. O-O {[%emt 0:02:00]} Nxc3 {[%emt 0:06:01]} 14. bxc3 {[%emt 0:00:32]} c5 {[%emt 0:01:41]} 15. Rae1 {[%emt 0:15:31]} Qc7 {[%emt 0:08:15]} 16. f3 {[%emt 0:05:42]} c4 {[%emt 0:03:56]} 17. Bf5 {[%emt 0:03:50]} Be6 {[%emt 0:10:30]} 18. g4 {[%emt 0:06:52]} g6 {[%emt 0:06:41]} 19. Bxe6 {[%emt 0:07:25]} Rxe6 {[%emt 0:00:21]} 20. e4 {[%emt 0:02:10]} Rae8 {[%emt 0:05:04]} 21. Bh2 {[%emt 0:05:46]} R6e7 {[%emt 0:03:32]} 22. Kh1 {[%emt 0:01:40]} b5 {[%emt 0:04:44]} 23. Qf2 {[%emt 0:03:14]} Nd7 {[%emt 0:05:42]} 24. Nxd7 {[%emt 0:02:01]} Qxd7 {[%emt 0:00:07]} 25. e5 {[%emt 0:00:44]} Bc7 {[%emt 0:01:51]} 26. f4 {[%emt 0:04:03]} f5 {[%emt 0:00:44]} 27. exf6 {[%emt 0:00:59]} Rxe1 {[%emt 0:04:20]} 28. Rxe1 {[%emt 0:00:13]} Rxe1+ {[%emt 0:00:04]} 29. Qxe1 {[%emt 0:00:13]} Bd8 {[%emt 0:00:51]} 30. g5 {[%emt 0:06:11]} Kf7 {[%emt 0:00:43]} 31. Kg2 {[%emt 0:01:00]} a5 {[%emt 0:01:30]} 32. Bg3 {[%emt 0:01:47]} Qf5 {[%emt 0:04:17]} 33. h4 {[%emt 0:01:30]} Qc2+ {[%emt 0:00:53]} 34. Bf2 {[%emt 0:01:49]} Qf5 {[%emt 0:00:47]} 35. Kf3 {[%emt 0:04:05]} h5 {[%emt 0:00:24]} 36. Qe5 {[%emt 0:02:08]} Qd7 {[%emt 0:00:48]} 37. Qb8 {[%emt 0:05:45]} Bc7 {[%emt 0:00:37]} 38. Qb7 {[%emt 0:01:25]} b4 {[%emt 0:01:18]} 39. cxb4 {[%emt 0:01:07]} axb4 {[%emt 0:00:13]} 40. Be3 {[%emt 0:02:15]} Qh3+ {[%emt 0:01:30]} 41. Ke2 {[%emt 0:00:28]} Qg2+ {[%emt 0:00:36]} 42. Ke1 {[%emt 0:01:01]} Qh1+ {[%emt 0:00:16]} 43. Ke2 {[%emt 0:00:09]} Qg2+ {[%emt 0:00:06]} 44. Ke1 {[%emt 0:00:04]} Qh1+ {[%emt 0:00:13]} 45. Ke2 {[%emt 0:00:19]} Qg2+ {[%emt 0:00:31]} 1/2-1/2

[Event "1000GM Spring GM-A 2024"]
[Site "New York"]
[Date "2024.03.31"]
[Round "7.3"]
[White "Lu, Maximillian"]
[Black "Lomasov, Semyon"]
[Result "1/2-1/2"]
[ECO "A28"]
[WhiteElo "2375"]
[BlackElo "2565"]
[Annotator "TA"]
[PlyCount "30"]
[EventDate "2024.03.26"]
[EventType "tourn"]
[EventCountry "USA"]
[SourceTitle "playchess.com"]
[Source "ChessBase"]
[SourceQuality "1"]
[TimeControl "5400+30"]

{[%evp 15,30,0,0,0,0,-9,-7,-11,0,0,0,0,0,0,5,-14,9]} 1. c4 {[%emt 0:03:16]} e5 {[%emt 0:01:01]} 2. Nc3 {[%emt 0:00:03]} Nf6 {[%emt 0:01:18]} 3. Nf3 {[%emt 0:00:03]} Nc6 {[%emt 0:00:06]} 4. d3 {[%emt 0:00:13]} Bb4 {[%emt 0:08:11]} 5. Bd2 {[%emt 0:00:15]} a5 {[%emt 0:09:36]} 6. g3 {[%emt 0:02:37]} O-O {[%emt 0:01:52]} 7. Bg2 {[%emt 0:00:17]} Re8 {[%emt 0:01:52]} 8. O-O {[%emt 0:00:40]} h6 {[%emt 0:02:49] The position is equal.} 9. Rc1 {[%emt 0:03:11]} d6 {[%emt 0:01:01]} 10. h3 {[%emt 0:08:42]} Bf5 {[%emt 0:09:22]} 11. g4 {[%emt 0:08:18]} Bh7 {[%emt 0:01:27]} 12. g5 {[%emt 0:08:19]} hxg5 {[%emt 0:00:21]} 13. Bxg5 {[%emt 0:00:18]} Bxc3 {[%emt 0:19:43]} 14. Rxc3 {[%emt 0:00:39]} Kh8 {[%emt 0:01:47]} 15. Nh2 {[%emt 0:10:57]} Qd7 {[%emt 0:37:34] An uneventful encounter.   Weighted Error Value: White=0.06 (flawless) /Black=0.03 (flawless) .  OK:         	White=1     	Black=2} 1/2-1/2

[Event "1000GM Spring GM-A 2024"]
[Site "New York"]
[Date "2024.03.31"]
[Round "7.4"]
[White "Novik, Maxim"]
[Black "Ostrovskiy, Aleksandr"]
[Result "1/2-1/2"]
[ECO "B13"]
[WhiteElo "2415"]
[BlackElo "2411"]
[Annotator "TA"]
[PlyCount "35"]
[EventDate "2024.03.26"]
[EventType "tourn"]
[EventCountry "USA"]
[SourceTitle "playchess.com"]
[Source "ChessBase"]
[SourceQuality "1"]
[TimeControl "5400+30"]

{[%evp 12,35,0,0,0,0,0,0,0,0,0,0,0,0,0,-18,0,0,0,0,8,-30,-19,-40,70,0]} 1. e4 {[%emt 0:00:30]} c6 {[%emt 0:03:41]} 2. d4 {[%emt 0:00:40]} d5 {[%emt 0:00:39]} 3. exd5 {[%emt 0:00:03]} cxd5 {[%emt 0:00:06]} 4. c4 {[%emt 0:00:02]} Nf6 {[%emt 0:00:09]} 5. Nc3 {[%emt 0:00:04]} Nc6 {[%emt 0:05:15]} 6. Bg5 {[%emt 0:00:37]} dxc4 {[%emt 0:03:57]} 7. Bxc4 {[%emt 0:00:06]} h6 {[%emt 0:00:11]} ({But not} 7... Qxd4 8. Qxd4 Nxd4 9. O-O-O) ({Much weaker is} 7... Nxd4 $6 8. Nf3 Nxf3+ 9. Qxf3 $16) 8. Be3 {[%emt 0:02:15]} e6 {[%emt 0:02:48]} 9. Nf3 {[%emt 0:00:24]} Bd6 {[%emt 0:06:19] The position is equal.} 10. O-O {[%emt 0:02:34]} O-O {[%emt 0:03:47]} 11. Qd2 {[%emt 0:01:38]} Ne7 {[%emt 0:20:24]} 12. Rad1 {[%emt 0:01:57]} Nf5 {[%emt 0:08:30]} 13. Rfe1 {[%emt 0:05:08]} a6 {[%emt 0:04:09]} 14. Bf4 {[%emt 0:05:17]} b5 {[%emt 0:06:51]} 15. Bb3 {[%emt 1:16:45]} b4 {[%emt 0:31:14]} 16. Na4 {[%emt 0:00:30]} Bb7 17. Ne5 {[%emt 0:00:30][%cal Oe5f7]} Bc8 {[%emt 0:01:00]} (17... Bd5 $15) 18. Nf3 {[%emt 0:00:30] Weighted Error Value: White=0.08 (flawless) /Black=0.19 (very precise) .  Mistake:       	White=1     	Black=1      Inaccurate:     	White=1     	---        OK:         	White=7     	Black=6} ({White should try} 18. g4 $14 Nh4 19. Qe2) 1/2-1/2

[Event "1000GM Spring GM-A 2024"]
[Site "New York"]
[Date "2024.03.31"]
[Round "7.5"]
[White "Sethuraman, Sandeep"]
[Black "Zilka, Stepan"]
[Result "1/2-1/2"]
[ECO "E34"]
[WhiteElo "2381"]
[BlackElo "2589"]
[Annotator "TA"]
[PlyCount "40"]
[EventDate "2024.03.26"]
[EventType "tourn"]
[EventCountry "USA"]
[SourceTitle "playchess.com"]
[Source "ChessBase"]
[SourceQuality "1"]
[TimeControl "5400+30"]

{[%evp 10,40,26,23,10,10,27,18,17,8,22,17,21,18,23,7,22,26,17,20,8,9,16,18,22,16,8,19,9,0,0,0,23]} 1. d4 {[%emt 0:00:02]} Nf6 {[%emt 1:31:00]} 2. c4 {[%emt 0:00:05]} e6 {[%emt 0:00:00]} 3. Nc3 {[%emt 0:00:04]} Bb4 {[%emt 0:00:00]} 4. Qc2 {[%emt 0:00:05]} d5 {[%emt 0:00:00]} 5. cxd5 {[%emt 0:00:08]} Qxd5 {[%emt 0:00:00]} 6. e3 {[%emt 0:00:08]} O-O {[%emt 0:00:00]} 7. Nf3 {[%emt 0:01:59]} c5 {[%emt 0:00:00]} 8. Bd2 {[%emt 0:00:07]} Bxc3 {[%emt 0:00:00]} 9. bxc3 {[%emt 0:00:07]} Nc6 {[%emt 0:00:00]} 10. Be2 {[%emt 0:02:13]} b6 {[%emt 0:00:00]} 11. O-O {[%emt 0:00:09]} Bb7 {[%emt 0:00:00]} 12. c4 {[%emt 0:04:37]} Qe4 {[%emt 0:00:00]} 13. Bd3 {[%emt 0:04:31]} Qg4 {[%emt 0:00:00]} 14. h3 {[%emt 0:00:07] The position is equal.} Qh5 {[%emt 0:00:00]} 15. Be2 {[%emt 0:10:54]} Rfd8 {[%emt 0:00:00]} 16. Rfd1 {[%emt 0:02:25]} Rac8 {[%emt 0:00:00][%cal Rc5d4]} 17. Bc3 {[%emt 0:09:06]} Qg6 {[%emt 0:00:00]} 18. Bd3 {[%emt 0:03:01]} Qh5 {[%emt 0:00:00][%cal Oc6d4]} 19. Be2 {[%emt 0:03:39]} Qg6 {[%emt 0:00:00]} 20. Bd3 {[%emt 0:09:48]} Qh5 $1 {[%emt 0:00:00] An uneventful encounter.   Weighted Error Value: White=0.02 (flawless) /Black=0.03 (flawless) .  OK:         	White=8     	Black=8      Strong:       	---       	Black=1} 1/2-1/2

[Event "1000GM Spring GM-A 2024"]
[Site "New York"]
[Date "2024.03.31"]
[Round "8.1"]
[White "Shlyakhtenko, Robert"]
[Black "Zilka, Stepan"]
[Result "0-1"]
[ECO "D35"]
[WhiteElo "2384"]
[BlackElo "2589"]
[Annotator "TA"]
[PlyCount "98"]
[EventDate "2024.03.26"]
[EventType "tourn"]
[EventCountry "USA"]
[SourceTitle "playchess.com"]
[Source "ChessBase"]
[SourceQuality "1"]
[TimeControl "5400+30"]

{[%evp 12,98,29,0,5,0,9,4,8,1,6,13,0,0,20,7,25,10,31,18,18,13,12,0,0,0,0,0,2,13,27,0,0,0,0,-18,-19,-16,-16,-120,-118,-210,-25,-150,-146,-174,-177,-157,-147,-207,-168,-157,-158,-171,-177,-166,-163,-232,-242,-237,-226,-299,-284,-281,-255,-271,-234,-290,-297,-557,-550,-598,-525,-592,-559,-672,-643,-635,-628,-676,-660,-808,-797,-800,-791,-774,-774,-750,-700]} 1. d4 {[%emt 0:00:04]} Nf6 {[%emt 0:00:07]} 2. c4 {[%emt 0:00:05]} e6 {[%emt 0:00:02]} 3. Nc3 {[%emt 0:00:08]} d5 {[%emt 0:00:03]} 4. cxd5 {[%emt 0:00:23]} exd5 {[%emt 0:00:03]} 5. Bg5 {[%emt 0:00:23]} c6 {[%emt 0:00:04]} 6. e3 {[%emt 0:00:13]} Bf5 {[%emt 0:00:05]} 7. Bd3 {[%emt 0:06:10]} Bxd3 {[%emt 0:00:12]} 8. Qxd3 {[%emt 0:00:06]} Be7 {[%emt 0:01:32]} 9. Nge2 {[%emt 0:01:38]} Nbd7 {[%emt 0:00:50] The position is equal.} 10. f3 {[%emt 0:02:22]} O-O {[%emt 0:03:27]} 11. O-O {[%emt 0:00:37]} Re8 {[%emt 0:01:18]} 12. Rad1 {[%emt 0:07:55]} Nb6 {[%emt 0:05:40]} 13. b3 {[%emt 0:03:55]} Rc8 {[%emt 0:02:05]} 14. Kh1 {[%emt 0:04:08]} Rc7 {[%emt 0:03:58]} 15. Bxf6 {[%emt 0:06:10]} Bxf6 {[%emt 0:00:08]} 16. e4 {[%emt 0:00:03]} dxe4 {[%emt 0:06:32]} 17. fxe4 {[%emt 0:01:10]} g6 {[%emt 0:00:46]} 18. e5 {[%emt 0:05:21]} Bg7 {[%emt 0:00:02]} 19. Ne4 {[%emt 0:00:16]} Nd5 {[%emt 0:01:24]} 20. Nd6 {[%emt 0:05:41] Excellent horsemanship.} Re6 {[%emt 0:05:00]} 21. Nf4 {[%emt 0:00:34]} Nxf4 $1 {[%emt 0:00:46]} 22. Rxf4 {[%emt 0:00:04]} c5 {[%emt 0:06:29]} 23. Rdf1 {[%emt 0:08:29]} Ree7 {[%emt 0:03:10]} 24. Qf3 {[%emt 0:16:09]} Qd7 $1 {[%emt 0:00:53]} 25. dxc5 {[%emt 0:04:26]} (25. Qd1 $11 {remains equal.}) 25... Bxe5 $17 {[%emt 0:01:07]} (25... Rxe5 $2 26. Rxf7 $18 (26. Nxf7 Rf5 $16) (26. Nxf7 Rf5 $16)) 26. Ne4 {[%emt 0:00:10]} Qc6 $2 {[%emt 0:02:12]} (26... f5 $1 $19 {[%cal Od7d8] Strongly threatening ...Qd8!} 27. Rh4 Bg7 (27... fxe4 28. Qf8#)) 27. Rh4 {[%emt 0:00:45]} (27. Rf6 $1 $11 Bxf6 28. Nxf6+ Kg7 29. Qc3) 27... Rcd7 {[%emt 0:05:08]} 28. Ng5 {[%emt 0:04:33] [#]} Bf6 $1 {[%emt 0:04:01][%mdl 512]} 29. Rg4 {[%emt 0:04:50] [#]} h5 $1 {[%emt 0:04:36]} 30. Ne4 {[%emt 0:01:50]} (30. Qxc6 $17 bxc6 31. Rg3) 30... Be5 {[%emt 0:04:13]} (30... hxg4 31. Nxf6+ Kf8 32. Qc3 $11) 31. Rg5 {[%emt 0:00:29][%cal Og5e5]} Bd4 $40 {[%emt 0:19:12][%mdl 128] Black goes for the king.} 32. Nd6 {[%emt 0:09:37]} Qxf3 {[%emt 0:01:23]} (32... Bxc5 33. Qxc6 bxc6 34. Nc8 $15) 33. gxf3 {[%emt 0:00:02]} Re2 {[%emt 0:01:49]} 34. Rd1 {[%emt 0:00:57] [#]} (34. b4 $142) 34... Be3 $1 $19 {[%emt 0:00:51]} 35. Rgd5 {[%emt 0:03:33]} Rxa2 {[%emt 0:00:10]} 36. b4 {[%emt 0:00:24]} Bf4 {[%emt 0:01:51]} 37. R5d4 {[%emt 0:02:37]} Bxh2 {[%emt 0:02:38]} 38. f4 {[%emt 0:00:12]} Re7 {[%emt 0:02:55]} 39. Ne4 {[%emt 0:01:59]} Kg7 {[%emt 0:00:41]} ({And not} 39... Bxf4 40. Nf6+ Kg7 41. Nd5 $11 (41. Rxf4 Ree2 $11)) 40. b5 $2 {[%emt 0:00:40]} (40. Rf1) 40... Bxf4 {[%emt 0:01:02] Black is clearly winning.} 41. Nc3 {[%emt 0:00:02]} Rh2+ {[%emt 0:00:47]} 42. Kg1 {[%emt 0:00:00]} Rc2 {[%emt 0:00:58] And now ...Be3+ would win.} 43. Nd5 {[%emt 0:00:45]} Be3+ {[%emt 0:00:38]} 44. Nxe3 {[%emt 0:00:05]} Rxe3 {[%emt 0:00:04] KRR-KRR} 45. Rd7 {[%emt 0:00:01]} Rxc5 {[%emt 0:02:00]} 46. Rf1 {[%emt 0:00:19]} Rxb5 {[%emt 0:00:19]} 47. Rfxf7+ {[%emt 0:00:04]} Kh6 {[%emt 0:00:06]} 48. Kf2 {[%emt 0:00:22]} Ree5 {[%emt 0:01:01]} 49. Kg3 {[%emt 0:00:04]} Kg5 {[%emt 0:00:29] Weighted Error Value: White=0.37/Black=0.11 (very precise) .  Missed win:     	---       	Black=1      Mistake:       	White=6     	---        Inaccurate:     	White=2     	---        OK:         	White=12    	Black=16     Best:        	White=2     	Black=2      Strong:       	---       	Black=3} 0-1